Cogmind - Beta 15 @@@ ROGUE MODE // 2025.05.24 @ 22:32:10 Player: Palikka Result: Destroyed by Y-72 Warden with Quantum Rifle Performance ------------- Evolutions (7) 3500 Regions Visited (25) 5000 Robots Destroyed (272) 1360 Value Destroyed (11168) 11168 Prototype IDs (47) 940 Alien Tech Used (7) 1400 Bonus (5148) 5148 TOTAL SCORE: 28516 Bonus ------- High Alert Combat Kills 1100 Follower Combat Kills 1838 Met Data Miner 300 Met Zhirov 300 Met Warlord at Base 500 MAIN.C Attacked Warlord 500 Warlord Defense Kills 1214 Friendly Fire -604 Cogmind --------- Core Integrity 0/1300 Matter 177/300 Energy 24/100 System Corruption 3% Temperature Cool (9) Movement Core (50) Location -3/Quarantine Parts ------- > --- POWER (2) -------- (None) > --- PROPULSION (6) --- (None) > --- UTILITY (11) ----- Advanced Signal Interpreter Advanced Terrain Scan Processor Improved Target Analyzer Improved Phase Shifter Advanced Hacking Suite > --- WEAPON (3) ------- (None) > --- INVENTORY (5) ---- Advanced Heat Sink Phase Redirector Compact HERF Cannon Matter Neutralizer Micro-nuke Launcher Peak State ------------ > --- POWER ------------ Vortex Chain Reactor > --- PROPULSION ------- Spiked Medium Treads Armored Medium Treads Armored Medium Treads Heavy Treads Advanced Medium Treads > --- UTILITY ---------- Huge Storage Unit Advanced Sensor Array Advanced Signal Interpreter Advanced Terrain Scanner Advanced Terrain Scan Processor Advanced Targeting Computer Improved Armor Integrity Analyzer Centrium Medium Armor Plating Advanced Shield Generator Advanced Hacking Suite Advanced System Shield > --- WEAPON ----------- Advanced Plasma Cannon Matter Neutralizer Enhanced Gauss Cannon > --- INVENTORY -------- Reinforced Fission Core Fusion Reactor Spiked Medium Treads Heavy Treads Improved Cryofiber Web Advanced Heat Sink Advanced Cooling System Advanced Coolant Injector Experimental Energy Well Improved Matter Compressor Improved Target Analyzer Hardened Heavy Armor Plating Centrium Medium Armor Plating High-powered Tractor Beam Mini Drone Bay Transdimensional Reconstructor HERF Cannon Compact HERF Cannon Heavy Phase Cannon Heavy Phase Cannon Heavy Phase Cannon Enhanced Gauss Cannon Micro-nuke Launcher [Rating: 148] Favorites ----------- Power Vortex Chain Reactor Engine Improved Deuterium Engine Power Core Neutrino Core Reactor Vortex Chain Reactor Propulsion Light Treads Treads Light Treads Leg Advanced Myomer Leg Wheel Wheel Flight Unit Xenon Bombardment Thruster Utility Huge Storage Unit Device Advanced Sensor Array Storage Huge Storage Unit Processor Advanced Terrain Scan Processor Hackware Advanced Hacking Suite Protection Centrium Medium Armor Plating Artifact Phase Redirector Weapon Advanced Plasma Cannon Energy Gun Spread Laser Energy Cannon Advanced Plasma Cannon Ballistic Gun Light Assault Rifle Ballistic Cannon Advanced Assault Cannon Launcher Heavy Missile Launcher Impact Weapon Heavy Mace Build | -11 -10 -9 -8 -7 -7 -7 -7 -6 -6 -6 -6 -6 -6 -5 -5 -5 -5 -4 -4 -4 -4 -4 -3 -3 -3 ------- Run | Yrd Mat Mat Mat Fac Low Low Dat Pro Fac Was Fac Ext Cet Fac Upp Upp War Pro Fac Upp Upp Zhi Pro Res Qua Slots Evolved 14 | . . 2 2 2 . . . . 2 . . . . 2 . . . . 2 . . . . 2 . Power 1 | . . . . . . . . . . . . . . 1 . . . . . . . . . . . Propulsion 3 | . . 1 . 1 . . . . 1 . . . . . . . . . . . . . . . . Utility 9 | . . 1 2 1 . . . . 1 . . . . 1 . . . . 2 . . . . 1 . Weapon 1 | . . . . . . . . . . . . . . . . . . . . . . . . 1 . Parts Attached 225 | 7 14 25 30 22 3 . . . 1 . 6 16 2 22 7 10 23 1 8 . 2 4 1 18 3 Power 27 | 1 2 4 4 . 1 . . . . . 2 1 . 4 2 2 1 . . . . 1 . 2 . Engine 16 | 1 2 4 2 . 1 . . . . . 1 . . 2 1 2 . . . . . . . . . Core 8 | . . . 2 . . . . . . . 1 1 . 2 1 . . . . . . . . 1 . Reactor 3 | . . . . . . . . . . . . . . . . . 1 . . . . 1 . 1 . Propulsion 61 | 3 2 11 8 5 . . . . 1 . 1 6 . 3 1 5 7 1 2 . 1 1 . 3 . Treads 57 | 2 2 11 8 5 . . . . 1 . 1 6 . 3 1 4 7 1 2 . 1 . . 2 . Leg 1 | . . . . . . . . . . . . . . . . . . . . . . 1 . . . Wheel 2 | 1 . . . . . . . . . . . . . . . 1 . . . . . . . . . Hover . | . . . . . . . . . . . . . . . . . . . . . . . . . . Flight 1 | . . . . . . . . . . . . . . . . . . . . . . . . 1 . Utility 88 | 1 7 4 11 9 2 . . . . . 1 7 1 11 3 . 13 . 5 . 1 . . 9 3 Device 36 | . 2 . 4 2 2 . . . . . 1 3 . 6 2 . 6 . 3 . 1 . . 2 2 Storage 7 | 1 2 1 1 1 . . . . . . . . . . . . 1 . . . . . . . . Processor 22 | . 1 1 3 3 . . . . . . . 1 . 3 1 . 4 . 2 . . . . 3 . Hackware 4 | . . . . . . . . . . . . 1 . . . . . . . . . . . 3 . Protection 18 | . 2 2 3 3 . . . . . . . 2 1 2 . . 2 . . . . . . 1 . Artifact 1 | . . . . . . . . . . . . . . . . . . . . . . . . . 1 Weapon 49 | 2 3 6 7 8 . . . . . . 2 2 1 4 1 3 2 . 1 . . 2 1 4 . Energy Gun 4 | 1 2 1 . . . . . . . . . . . . . . . . . . . . . . . Energy Cannon 16 | . . . . 2 . . . . . . 1 1 . 1 1 3 1 . 1 . . 2 . 3 . Ballistic Gun 13 | 1 . 5 5 2 . . . . . . . . . . . . . . . . . . . . . Ballistic Cannon 9 | . . . . 2 . . . . . . 1 1 1 2 . . 1 . . . . . . 1 . Launcher 4 | . . . 1 1 . . . . . . . . . 1 . . . . . . . . 1 . . Special Weapon . | . . . . . . . . . . . . . . . . . . . . . . . . . . Impact Weapon 3 | . 1 . 1 1 . . . . . . . . . . . . . . . . . . . . . Slashing Weapon . | . . . . . . . . . . . . . . . . . . . . . . . . . . Piercing Weapon . | . . . . . . . . . . . . . . . . . . . . . . . . . . Special Melee Weapon . | . . . . . . . . . . . . . . . . . . . . . . . . . . Unidentified Prototypes 21 | . . 2 1 1 . . . . . . . . 1 . . . 7 1 . . 1 3 . 1 3 Corrupted Parts 4 | . . . . . . . . . . . . . . 1 . . 3 . . . . . . . . System Corruption 25 | . . . . . . . . . . . . . . 4 . . 21 . . . . . . . . Parts Lost 78 | . 1 5 7 1 . . . . . . 3 4 . 13 3 9 7 . 1 . . . . 23 1 Power 13 | . . 1 . . . . . . . . 1 . . 3 1 3 . . . . . . . 4 . Propulsion 28 | . 1 2 3 . . . . . . . 1 2 . 5 . 2 4 . . . . . . 8 . Utility 23 | . . 1 2 1 . . . . . . . 2 . 5 1 2 1 . . . . . . 7 1 Weapon 14 | . . 1 2 . . . . . . . 1 . . . 1 2 2 . 1 . . . . 4 . Highest Loss Streak 13 | . 1 4 3 1 . . . . . . 2 4 . 3 2 4 5 . 1 . . . . 13 1 To Critical Strikes . | . . . . . . . . . . . . . . . . . . . . . . . . . . Average Backups 22 | 3 12 23 24 24 24 24 24 24 22 23 22 23 24 23 23 23 23 23 23 23 22 21 23 19 4 Power 1 | . 1 . 1 1 1 1 1 1 1 1 . . 1 . . . . 2 2 2 2 1 2 1 . Propulsion 1 | 1 2 3 2 1 3 3 3 3 2 2 1 1 1 . . . . 2 2 3 2 1 2 1 . Utility 9 | . 4 8 8 10 9 10 10 10 9 10 11 12 12 10 12 11 10 10 9 10 10 9 10 9 2 Weapon 9 | . 4 10 11 12 10 10 10 10 10 9 8 9 10 11 11 11 11 9 8 8 8 8 7 6 2 Tool/Special . | . . . . . . . . . . . . . . . . . . . . . . . . . . Unused Backups 78 | . 6 21 4 15 . 1 . . . . 1 3 . 9 . 1 7 1 2 . . 2 . 5 . Power 6 | . 1 1 . 2 . . . . . . . . . . . . . . . . . 1 . 1 . Propulsion 8 | . 1 3 1 1 . . . . . . . . . . . . 1 . 1 . . . . . . Utility 33 | . 1 5 1 5 . 1 . . . . 1 3 . 7 . 1 3 1 . . . 1 . 3 . Weapon 30 | . 3 11 2 7 . . . . . . . . . 2 . . 3 . 1 . . . . 1 . Tool/Special 1 | . . 1 . . . . . . . . . . . . . . . . . . . . . . . Average Slot Usage (%) 94 | . 99 99 99 99 100 100 93 100 99 100 99 99 100 94 75 82 93 93 91 89 89 76 90 87 24 Engine 4 | . 14 11 6 7 7 7 7 7 6 6 4 1 . 2 3 4 1 . . . . . . . . Core 1 | . . . 2 . . . . . . . 1 4 6 7 4 1 . . . . . . . 2 . Reactor 1 | . . . . . . . . . . . . . . . . . 3 5 5 5 5 5 5 3 . Treads 26 | . 27 33 26 30 30 30 30 30 33 33 32 33 33 23 7 16 28 29 23 21 21 24 25 19 . Device 12 | . 1 . 7 13 13 14 15 10 18 13 18 9 6 14 16 16 11 16 17 15 15 15 20 12 6 Storage 7 | . 18 11 9 7 7 7 7 7 6 6 6 6 6 5 5 5 7 5 5 5 5 5 5 3 . Processor 18 | . . 10 21 15 23 23 23 23 20 20 20 20 20 18 22 23 22 17 20 21 20 20 20 19 13 Protection 5 | . 6 10 6 7 . . . 3 . 5 1 8 13 6 . . 2 5 7 10 10 5 5 4 . Energy Cannon 4 | . . . . 3 7 7 1 7 6 . 3 4 6 4 9 6 4 5 7 10 10 . 9 8 . Ballistic Gun 3 | . 12 17 17 3 . . . . . . . . . . . . . . . . . . . . . Ballistic Cannon 2 | . . . . 3 6 3 . 6 6 . 3 7 6 5 . . 4 5 2 . . . . 3 . Peak Build Rating 148 | 6 11 20 32 51 51 51 51 51 57 57 60 62 62 84 82 83 117 113 131 131 135 135 135 148 49 Average Rating 68 | 5 9 15 28 41 49 48 44 49 55 56 56 58 60 75 76 69 95 110 124 131 131 115 134 131 33 On Entrance 67 | . 6 11 20 30 49 51 48 51 50 56 56 59 57 62 76 81 70 114 110 131 131 135 134 135 30 Naked Turns . | . . . . . . . . . . . . . . . . . . . . . . . . . . Heaviest Build 160 | 10 30 99 103 120 113 113 113 113 107 115 114 126 122 143 128 127 152 149 155 155 156 155 151 160 13 Greatest Support 183 | 40 40 60 69 88 88 88 88 88 110 110 110 116 110 133 100 130 144 128 154 154 182 182 182 183 3 Greatest Overweight (x) 4 | 1 . 1 1 1 1 1 1 1 . 1 1 1 1 1 1 1 2 1 1 1 1 . . 3 4 Average Overweight (x) . | . . . 1 1 1 1 1 1 . . . . 1 . 1 . . 1 1 1 . . . . . Largest Inventory Capacity 25 | 8 15 25 25 25 25 25 25 25 25 25 25 25 25 25 25 25 25 25 25 25 25 25 25 25 5 Average Capacity 24 | 7 14 24 25 25 25 25 25 25 25 25 25 25 25 25 25 25 25 25 25 25 25 25 25 23 5 Most Carried 25 | 7 15 25 25 25 25 25 25 25 24 24 25 25 25 25 25 25 25 25 25 25 25 25 25 25 5 Average Carried 23 | 3 12 23 24 24 24 24 25 25 23 23 23 24 25 24 24 24 24 24 24 25 24 23 24 20 4 Final Capacity 25 | 8 15 25 25 25 25 25 25 25 25 25 25 25 25 25 25 25 25 25 25 25 25 25 25 5 5 Final Carried 25 | 7 15 25 25 24 25 25 25 25 24 24 25 25 25 25 25 25 24 25 25 25 24 25 25 5 5 Class Distribution -------------------- 32% | Scavenger-Mutant 22% | Scavenger-Skirmisher 21% | Mutant 11% | Skirmisher 3% | Assassin Dominant Class ---------------- Mutant | -10/Materials Scavenger-Mutant | -9/Materials Mutant | -8/Materials Scavenger-Mutant | -7/Factory Skirmisher | -7/Lower Caves Skirmisher | -7/Lower Caves Assassin | -7/Data Miner Mutant | -6/Proximity Caves Skirmisher | -6/Factory Mutant | -6/Waste Assassin | -6/Factory Scavenger-Mutant | -6/Extension Scavenger-Mutant | -6/Cetus Scavenger-Mutant | -5/Factory Skirmisher | -5/Upper Caves Scavenger-Assassin | -5/Upper Caves Scavenger-Mutant | -5/Warlord Scavenger-Skirmisher | -4/Proximity Caves Scavenger-Mutant | -4/Factory Scavenger-Skirmisher | -4/Upper Caves Scavenger-Skirmisher | -4/Upper Caves Scavenger-Mutant | -4/Zhirov Scavenger-Skirmisher | -3/Proximity Caves Scavenger-Skirmisher | -3/Research Mutant | -3/Quarantine Resources | -11 -10 -9 -8 -7 -7 -7 -7 -6 -6 -6 -6 -6 -6 -5 -5 -5 -5 -4 -4 -4 -4 -4 -3 -3 -3 ----------- Run | Yrd Mat Mat Mat Fac Low Low Dat Pro Fac Was Fac Ext Cet Fac Upp Upp War Pro Fac Upp Upp Zhi Pro Res Qua Matter Collected 9297 | 282 385 694 1138 670 314 137 . 110 . 404 399 643 70 933 359 513 499 139 317 52 63 200 503 473 . Remotely 143 | . . . . . . . . . . . . . . . . . . . . . . . . 143 . Salvage Created 10550 | 94 513 1529 1419 650 47 . . 110 . 133 478 934 72 949 208 434 424 . 937 . 116 . 501 1002 . Parts 551 | 11 31 108 76 33 3 . . 7 . 2 36 35 1 44 10 27 5 . 61 . 4 . 15 42 . Haulers Intercepted 10 | . 2 3 4 . . . . . . . 1 . . . . . . . . . . . . . . Recyclers Shooed 12 | . 3 1 4 . . . . . . . . . . 4 . . . . . . . . . . . Parts Field Recycled . | . . . . . . . . . . . . . . . . . . . . . . . . . . Retrieved Matter . | . . . . . . . . . . . . . . . . . . . . . . . . . . Parts Self-Destructed 53 | . . . . . 3 . . 6 . . . . . . 7 19 . . . 1 3 . 14 . . Prevented 2 | . . . . . . . . . . . . . . . . . . . . . 2 . . . . Kills | -11 -10 -9 -8 -7 -7 -7 -7 -6 -6 -6 -6 -6 -6 -5 -5 -5 -5 -4 -4 -4 -4 -4 -3 -3 -3 ------- Run | Yrd Mat Mat Mat Fac Low Low Dat Pro Fac Was Fac Ext Cet Fac Upp Upp War Pro Fac Upp Upp Zhi Pro Res Qua Combat Hostiles Destroyed 218 | . 10 38 23 15 1 . . 6 . . 13 16 1 20 5 10 8 . 16 . 2 . 12 22 . Guns 73 | . 10 38 22 3 . . . . . . . . . . . . . . . . . . . . . Cannons 100 | . . . . 8 1 . . 2 . . 7 16 1 17 2 3 8 . 11 . 1 . 5 18 . AOE 37 | . . . 1 3 . . . 4 . . 6 . . 3 3 7 . . 2 . . . 6 2 . Classes Destroyed 22 | 2 3 3 4 1 1 . . . . . . 4 . . . 1 1 . . . . . 1 1 . Worker 3 | . . . 2 . . . . . . . 1 . . . . . . . . . . . . . . Builder 11 | . . . 1 . . . . . . . 1 . . 3 . . . . 4 . . . . 2 . Tunneler 3 | 2 . . . . . . . . . . 1 . . . . . . . . . . . . . . Hauler 10 | . 2 3 4 . . . . . . . 1 . . . . . . . . . . . . . . Recycler 12 | 1 2 1 4 1 . . . . . . 1 . . 1 . . . . 1 . . . . . . Mechanic 2 | . . . 1 . . . . . . . . 1 . . . . . . . . . . . . . Drone 1 | . . . . . . . . . . . . . . . . . . . . . . . 1 . . Watcher 11 | . . 4 2 2 . . . . . . . . . 3 . . . . . . . . . . . Swarmer 70 | . 3 13 . 3 . . . 4 . . 10 3 . 5 . 9 1 . 4 . . . 4 11 . Saboteur 1 | . . . . . . . . . . . . 1 . . . . . . . . . . . . . Grunt 61 | . 7 16 14 4 . . . . . . . 5 . 1 3 . . . 2 . . . 5 4 . Brawler 1 | . . . . . . . . . . . . . . . . . 1 . . . . . . . . Duelist 4 | . . 1 1 . . . . . . . . 2 . . . . . . . . . . . . . Sentry 24 | . . 8 6 3 . . . . . . 1 2 . 2 . . . . 1 . . . . 1 . Specialist 4 | . . . . . . . . . . . . 2 . . . . . . . . . . . 2 . Hunter 11 | . . . 2 . . . . 2 . . 1 . . . 2 . . . . . . . 2 2 . Programmer 32 | . . . . 5 . . . . . . 1 . . 12 . . 4 . 8 . 2 . . . . Heavy 1 | . . . . . . . . . . . . . . . . . . . . . . . . 1 . Behemoth 5 | . . . . . . . . . . . . 1 . . . 1 1 . 1 . . . . 1 . Cetus Guard 1 | . . . . . . . . . . . . . 1 . . . . . . . . . . . . Executioner 1 | . . . . . . . . . . . . . . . . . 1 . . . . . . . . Samaritan 1 | . . . . . . . . . . . . . . . . 1 . . . . . . . . . Savage 2 | . . . . . . . . . . . . 1 . . . 1 . . . . . . . . . Mutant 1 | . . . . . 1 . . . . . . . . . . . . . . . . . . . . Best Kill Streak 10 | 1 3 10 7 4 1 . . 4 . . 6 9 1 5 3 5 3 . 7 . 2 . 7 10 . Combat Bots Only 10 | . 3 10 3 3 1 . . 4 . . 4 8 1 5 3 5 3 . 4 . 2 . 7 8 . Max Kills in Single Turn 6 | 1 1 2 2 2 1 . . 2 . . 4 3 1 3 1 3 2 . 4 . 1 . 6 2 . Gunslinging 1 | . . 1 1 . . . . . . . . . . . . . . . . . . . . . . Exploded 6 | . . . 1 2 . . . 2 . . 3 . . 3 1 3 . . 1 . . . 6 2 . Melee . | . . . . . . . . . . . . . . . . . . . . . . . . . . Uniques/NPCs Destroyed . | . . . . . . . . . . . . . . . . . . . . . . . . . . Combat | -11 -10 -9 -8 -7 -7 -7 -7 -6 -6 -6 -6 -6 -6 -5 -5 -5 -5 -4 -4 -4 -4 -4 -3 -3 -3 -------- Run | Yrd Mat Mat Mat Fac Low Low Dat Pro Fac Was Fac Ext Cet Fac Upp Upp War Pro Fac Upp Upp Zhi Pro Res Qua Hostile Shots Fired 1898 | . 52 197 155 157 6 . . 62 . . 81 92 3 146 34 86 276 . 93 3 11 . 62 341 41 Missed 576 | . 8 55 41 52 2 . . 25 . . 26 30 . 39 9 23 81 . 31 1 2 . 25 102 24 Hits 1322 | . 44 142 114 105 4 . . 37 . . 55 62 3 107 25 63 195 . 62 2 9 . 37 239 17 Melee 5 | . . 2 1 . . . . . . . . 2 . . . . . . . . . . . . . Projectile 1317 | . 44 140 113 105 4 . . 37 . . 55 60 3 107 25 63 195 . 62 2 9 . 37 239 17 AOE 2 | . . . . . . . . . . . . . . . . . 1 . 1 . . . . . . Critical Strikes 45 | . . . 5 1 . . . 1 . . . 1 . 8 . 1 9 . 5 . 1 . 1 10 2 Part Disruptions 7 | . . . . 1 . . . . . . . 1 . . . . 5 . . . . . . . . Damage Taken 21606 | . 542 1609 1882 1096 50 . . 607 . . 708 1130 131 2155 516 1202 3032 . 1079 23 133 . 541 4800 370 Core 2785 | . 51 217 230 92 . . . 71 . . 123 114 . 229 33 45 256 . 13 . 15 . 62 1020 214 Absorbed by Shields 1764 | . . . . . . . . . . . . 308 . 147 40 86 522 . 386 9 49 . 199 18 . Reduced by Siege Mode 64 | . . . . . . . . . . . . . . . . . . . . . . . . 64 . Redirected to Shielding 15 | . 15 . . . . . . . . . . . . . . . . . . . . . . . . Regen/Repaired (Parts) 387 | . . . . . . . . . . . . . . . . . 387 . . . . . . . . Core Remaining (%) 70 | 100 79 45 58 . . . . 76 . . . . 72 . . . . 43 . . . . 92 . . Volleys Fired 787 | 12 60 130 101 55 15 . . 17 . . 27 46 5 90 12 23 29 9 42 10 7 . 29 65 3 Largest 3 | 2 2 2 2 2 2 . . 2 . . 2 2 2 2 2 2 2 1 2 1 2 . 2 3 1 Hottest 274 | 60 85 85 50 105 105 . . 105 . . 125 138 128 138 196 188 146 98 188 98 188 . 203 274 90 Shots Fired 1471 | 24 109 257 197 99 16 . . 33 . . 37 90 10 159 18 35 57 12 79 12 14 . 48 162 3 Gun 613 | 24 109 257 193 30 . . . . . . . . . . . . . . . . . . . . . Cannon 828 | . . . . 66 16 . . 31 . . 32 90 10 158 11 31 57 12 79 12 14 . 46 160 3 Launcher 30 | . . . 4 3 . . . 2 . . 5 . . 1 7 4 . . . . . . 2 2 . Special . | . . . . . . . . . . . . . . . . . . . . . . . . . . Kinetic 806 | 12 60 231 193 68 2 . . 15 . . 14 51 5 72 . . 27 1 16 . . . . 39 . Thermal 627 | 12 49 26 . 28 14 . . 16 . . 18 39 5 86 11 31 30 11 63 12 14 . 46 113 3 Explosive 30 | . . . 4 3 . . . 2 . . 5 . . 1 7 4 . . . . . . 2 2 . Electromagnetic 8 | . . . . . . . . . . . . . . . . . . . . . . . . 8 . Robot Hit Streak 42 | 7 11 14 17 16 6 . . 8 . . 11 17 7 11 8 19 7 . 16 . 9 . 16 42 . Robot Miss Streak 9 | 3 8 9 6 2 . . . 6 . . 2 4 1 3 1 2 3 . 3 . . . 3 3 . Penetration Max 3 | . . . . . . . . . . . . 3 . 1 . . . . . . . . . 1 . Secondary Targets 11 | . . 7 4 . . . . . . . . . . . . . . . . . . . . . . Max Gunslinging Chain 1 | . . 1 1 . . . . . . . . . . . . . . . . . . . . . . Shots Hit Robots 968 | 14 81 188 155 66 4 . . 17 . 2 25 59 8 89 11 31 30 . 43 . 8 . 25 112 . Core Hits 511 | 5 51 109 85 22 3 . . 9 . 1 25 31 3 38 10 18 16 . 26 . 2 . 19 37 1 Critical Kills 23 | . . 1 . 1 . . . . . . . 13 1 1 . . 1 . 4 . . . 1 . . Critical Parts Destroyed 18 | . . 1 . 1 . . . . . . . 11 . . . 2 2 . 1 . . . . . . Critical Strikes 61 | . . 2 . 4 . . . . . . . 26 3 7 . 2 3 . 5 . . . 1 8 . Meltdown 5 | . . . . 1 . . . . . . . . . 1 . . . . 2 . . . 1 . . Destroy 38 | . . 2 . 1 . . . . . . . 26 3 . . . 3 . 3 . . . . . . Blast 16 | . . . . 2 . . . . . . . . . 6 . . . . . . . . . 8 . Smash 2 | . . . . . . . . . . . . . . . . 2 . . . . . . . . . Melee Attacks 49 | . 1 2 3 21 1 2 . . . 2 10 . . 1 . 6 . . . . . . . . . Impact 49 | . 1 2 3 21 1 2 . . . 2 10 . . 1 . 6 . . . . . . . . . Slashing . | . . . . . . . . . . . . . . . . . . . . . . . . . . Piercing . | . . . . . . . . . . . . . . . . . . . . . . . . . . Sneak Attacks 4 | . . . . . . . . . . . 1 . . . . 3 . . . . . . . . . Combat Hostiles . | . . . . . . . . . . . . . . . . . . . . . . . . . . Follow-up Attacks . | . . . . . . . . . . . . . . . . . . . . . . . . . . Damage Inflicted 29425 | 152 835 2195 3407 2016 105 . . 700 . 207 1526 1694 200 3598 789 1983 1322 . 2164 . 334 . 1622 4573 3 Guns 6536 | 152 835 2177 3019 353 . . . . . . . . . . . . . . . . . . . . . Cannons 17043 | . . . . 1264 105 . . 359 . . 606 1694 200 3309 226 968 1322 . 1607 . 334 . 850 4199 . Explosions 5089 | . . . 388 362 . . . 341 . . 782 . . 289 563 661 . . 557 . . . 772 374 . Melee 754 | . . 18 . 37 . . . . . 207 138 . . . . 354 . . . . . . . . . Ramming 3 | . . . . . . . . . . . . . . . . . . . . . . . . . 3 Kinetic 10829 | 75 314 1769 3019 1002 49 . . 115 . . 363 865 75 1591 . . 402 . 176 . . . . 1014 . Thermal 12958 | 77 521 408 . 615 56 . . 244 . . 243 829 125 1718 226 968 920 . 1988 . 334 . 850 2836 . Explosive 4532 | . . . 388 362 . . . 341 . . 782 . . 289 563 661 . . . . . . 772 374 . Electromagnetic 349 | . . . . . . . . . . . . . . . . . . . . . . . . 349 . Impact 754 | . . 18 . 37 . . . . . 207 138 . . . . 354 . . . . . . . . . Slashing . | . . . . . . . . . . . . . . . . . . . . . . . . . . Piercing . | . . . . . . . . . . . . . . . . . . . . . . . . . . Highest Corruption 34 | . . . . 2 2 2 2 2 . . 1 4 4 21 7 7 34 34 6 6 9 9 9 2 3 Average Corruption 8 | . . . . 1 2 2 2 2 . . 1 1 4 12 7 7 21 34 3 6 8 9 9 1 2 Corruption Purged 18 | . . . . . . . . . . . . . . 18 . . . . . . . . . . . Corruption Blocked . | . . . . . . . . . . . . . . . . . . . . . . . . . . Effects 506 | . . . . 27 13 7 2 11 . . . 15 6 81 35 49 22 95 10 18 32 10 67 4 2 Message Errors 130 | . . . . 6 3 2 2 4 . . . 4 . 22 8 9 4 22 2 4 11 5 20 . 2 Matter Fused 125 | . . . . 10 6 1 . . . . . 4 2 19 9 13 3 26 . 6 8 2 16 . . Heat Flow Errors 54 | . . . . 2 1 1 . 3 . . . 1 1 5 6 7 3 10 2 2 4 . 6 . . Energy Discharges 60 | . . . . 1 1 1 . . . . . 2 2 10 2 10 4 11 . 1 4 . 10 1 . Parts Rejected 1 | . . . . . . . . . . . . . . . . . . . . . . . 1 . . Parts Fused 7 | . . . . 1 . . . . . . . 1 . 1 . 1 . 2 . . . . 1 . . Data Loss (minor) 58 | . . . . 3 . 1 . 3 . . . . 1 7 5 5 1 16 3 1 3 2 5 2 . Data Loss (major) 27 | . . . . 1 1 1 . . . . . 2 . 5 3 1 3 2 2 1 . 1 4 . . Misfires 20 | . . . . 2 . . . 1 . . . . . 4 2 1 1 3 1 2 2 . 1 . . Alerts 14 | . . . . 1 . . . . . . . 1 . 4 . 1 . 3 . 1 . . 2 1 . Misdirections 1 | . . . . . . . . . . . . . . . . . 1 . . . . . . . . Weapon Failures 9 | . . . . . 1 . . . . . . . . 4 . 1 2 . . . . . 1 . . Overload Shots 4 | . . . . . . . . . . . . 4 . . . . . . . . . . . . . Overflow Damage 1213 | . . . . 142 . . . 31 . 37 69 . . 248 9 219 70 . 189 . 31 . 99 69 . Projectiles 481 | . . . . 31 . . . . . . 22 . . 166 . 12 70 . 66 . 31 . 28 55 . Explosions 518 | . . . . 96 . . . 31 . . 47 . . 82 9 45 . . 123 . . . 71 14 . Melee 214 | . . . . 15 . . . . . 37 . . . . . 162 . . . . . . . . . Knockbacks 49 | . . . . 5 . . . 1 . . 2 9 . 17 . 1 1 . 2 . . . . 11 . Impact 1 | . . . . . . . . . . . . . . . . 1 . . . . . . . . . Kinetic 38 | . . . . 5 . . . 1 . . 2 6 . 13 . . 1 . 2 . . . . 8 . Secondary 10 | . . . . . . . . . . . . 3 . 4 . . . . . . . . . 3 . Self-Inflicted Damage 523 | . . . 59 . . . . . . . 25 . . 85 81 76 . . 181 . . . . 15 1 Shots 12 | . . . 1 . . . . . . . 1 . . 1 2 2 . . 3 . . . . 2 . Rammed 1 | . . . . . . . . . . . . . . . . . . . . . . . . . 1 Targets Rammed 1 | . . . . . . . . . . . . . . . . . . . . . . . . . 1 Kicked . | . . . . . . . . . . . . . . . . . . . . . . . . . . Crushed . | . . . . . . . . . . . . . . . . . . . . . . . . . . Highest Temperature 372 | 40 199 166 57 231 138 245 . 221 . . 72 64 93 249 243 296 372 86 240 224 258 . 92 253 . Average Temperature 63 | 22 64 32 17 122 33 131 . 98 . . 26 16 69 52 79 94 182 38 76 83 66 . 40 80 . Received Heat Transfer 3754 | . 276 486 909 264 60 . . . . . 66 150 . 135 42 102 734 . 33 . . . 58 391 48 Effects 9 | . . . . . . . . . . . . . . . . . 9 . . . . . . . . Interference 7 | . . . . . . . . . . . . . . . . . 7 . . . . . . . . Short Circuit 1 | . . . . . . . . . . . . . . . . . 1 . . . . . . . . Damage (minor) 1 | . . . . . . . . . . . . . . . . . 1 . . . . . . . . Siege Activations 4 | . . . . . . . . . . . . . . . . . . . . . . . . 4 . Total Turns 67 | . . . . . . . . . . . . . . . . . . . . . . . . 67 . Longest Duration 27 | . . . . . . . . . . . . . . . . . . . . . . . . 27 . Martial Activations . | . . . . . . . . . . . . . . . . . . . . . . . . . . Shielding Activations . | . . . . . . . . . . . . . . . . . . . . . . . . . . Robots Disrupted . | . . . . . . . . . . . . . . . . . . . . . . . . . . Combat Hostiles . | . . . . . . . . . . . . . . . . . . . . . . . . . . Robots Corrupted 4 | . . . . 1 . . . . . . . . . . . 2 . . . . . . . 1 . Combat Hostiles 2 | . . . . . . . . . . . . . . . . 1 . . . . . . . 1 . Parts Fried 3 | . . . . 1 . . . . . . . . . . . 1 . . . . . . . 1 . Impact Corruptions 7 | . . . . 1 . . . . . 1 . . . . . 5 . . . . . . . . . Robots Melted 8 | . . . . 1 . . . . . . . . . 1 . . . . 3 . 1 . 1 1 . Combat Hostiles 7 | . . . . 1 . . . . . . . . . . . . . . 3 . 1 . 1 1 . Parts Melted 28 | . . . . 1 . . . . . . . 3 . 4 3 . . . 9 . 1 . 5 2 . Heat Transferred 16497 | 175 835 520 . 814 74 . . 333 . . 296 1346 250 2400 350 1118 915 . 2231 . 348 . 1107 3385 . Parts Sabotaged . | . . . . . . . . . . . . . . . . . . . . . . . . . . Parts Stolen . | . . . . . . . . . . . . . . . . . . . . . . . . . . Parts Stripped . | . . . . . . . . . . . . . . . . . . . . . . . . . . Power Chain Reactions . | . . . . . . . . . . . . . . . . . . . . . . . . . . Alert | -11 -10 -9 -8 -7 -7 -7 -7 -6 -6 -6 -6 -6 -6 -5 -5 -5 -5 -4 -4 -4 -4 -4 -3 -3 -3 ------- Run | Yrd Mat Mat Mat Fac Low Low Dat Pro Fac Was Fac Ext Cet Fac Upp Upp War Pro Fac Upp Upp Zhi Pro Res Qua Maximum Alert Level 4 | . . 2 1 1 . . . . . . . 4 2 2 . . . . 2 . . . . 3 2 Low Security (%) 66 | 100 100 39 71 99 . . . . 100 100 100 59 . 54 . . . . 71 . . . . . . Level 1 14 | . . 30 28 . . . . . . . . 6 . 38 . . . . 9 . . . . . . Level 2 12 | . . 30 . . . . . . . . . 24 100 7 . . . . 19 . . . . 12 100 Level 3 5 | . . . . . . . . . . . . 3 . . . . . . . . . . . 87 . Level 4 . | . . . . . . . . . . . . 5 . . . . . . . . . . . . . Level 5 . | . . . . . . . . . . . . . . . . . . . . . . . . . . High Security . | . . . . . . . . . . . . . . . . . . . . . . . . . . Max Security . | . . . . . . . . . . . . . . . . . . . . . . . . . . Peak Influence 1200 | 5 106 529 264 201 . . . . . . 107 1200 663 446 . . . . 483 . . . . 1001 562 Initial 1001 | . . . 220 53 . . . . . . . 22 663 302 . . . . . . . . . 1001 522 Average 197 | . 28 247 153 72 . . . . . . 31 274 606 186 . . . . 154 . . . . 839 527 Influence Increases 9909 | 15 358 1032 766 519 . . . 140 . . 426 1855 117 1035 120 235 499 . 761 15 50 . 270 1629 67 Destroy 0b10 Robot/C 5180 | . 200 760 460 300 . . . 120 . . 260 840 80 460 100 200 380 . 320 . 40 . 220 440 . Destroy 0b10 Robot/NC 295 | 15 20 40 70 15 . . . . . . 25 25 5 35 . 5 . . 25 . . . 5 10 . Destroy Leader 1026 | . 64 184 152 104 . . . 20 . . 52 94 . 116 20 30 . . 80 . 10 . 30 70 . Allied During Kill 816 | . . . . . . . . . . . . 664 29 19 . . 104 . . . . . . . . Successful Hack 127 | . 43 15 . 14 . . . . . . 10 40 . . . . . . . . . . . . 5 Disable Machine 570 | . . 15 30 60 . . . . . . 30 105 . 120 . . . . 150 . . . . 30 30 Destroy Structure 650 | . 1 3 54 26 . . . . . . 49 42 3 210 . . . . 156 . . . . 104 2 Advance Influence 900 | . . . . . . . . . . . . . . . . . . . . . . . . 900 . Partial Spotted 15 | . 15 . . . . . . . . . . . . . . . . . . . . . . . . Lose Combat Pursuer 330 | . 15 15 . . . . . . . . . 45 . 75 . . 15 . 30 15 . . 15 75 30 Influence Decreases 9430 | 15 358 509 1171 447 190 . . 140 . . 380 716 762 1141 554 235 253 246 326 450 50 . 119 852 516 Entered New Map 2249 | . . . 303 65 71 . . . . . . 24 522 238 162 . . 246 . 162 . . . 50 406 Time Decay 5569 | 15 348 459 648 372 119 . . 140 . . 350 455 140 588 362 195 103 . 316 288 50 . 119 422 80 Search Patrol Dispatched 150 | . . . . . . . . . . . . . . . . . . . . . . . . 150 . Lost Part 709 | . 10 50 70 10 . . . . . . 30 19 . 130 30 40 70 . 10 . . . . 230 10 Lost Ally 441 | . . . . . . . . . . . . 181 100 60 . . 80 . . . . . . . 20 Purge Threat 312 | . . . 150 . . . . . . . . 37 . 125 . . . . . . . . . . . Squads Dispatched 46 | . 3 4 6 8 . . . . . . 2 5 . 7 . . . . 4 . . . . 6 1 Investigation 3 | . . 1 . . . . . . . . . 2 . . . . . . . . . . . . . Extermination 19 | . . . . 6 . . . . . . 2 . . 6 . . . . 2 . . . . 2 1 Reinforcement 16 | . 3 3 3 2 . . . . . . . . . 1 . . . . 1 . . . . 3 . Assault 5 | . . . . . . . . . . . . 3 . . . . . . 1 . . . . 1 . Garrison 3 | . . . 3 . . . . . . . . . . . . . . . . . . . . . . Intercept . | . . . . . . . . . . . . . . . . . . . . . . . . . . Searches Triggered 1 | . . . . . . . . . . . . . . . . . . . . . . . . 1 . Data Miner Redirects 3 | . . . . . . . . . . . . 3 . . . . . . . . . . . . . Construction Impeded 2 | . . . . . . . . . . . . . . 1 . . . . . . . . . 1 . Haulers Reinforced . | . . . . . . . . . . . . . . . . . . . . . . . . . . Active Scanning Responses . | . . . . . . . . . . . . . . . . . . . . . . . . . . Cargo Convoy Interrupts . | . . . . . . . . . . . . . . . . . . . . . . . . . . Stealth | -11 -10 -9 -8 -7 -7 -7 -7 -6 -6 -6 -6 -6 -6 -5 -5 -5 -5 -4 -4 -4 -4 -4 -3 -3 -3 --------- Run | Yrd Mat Mat Mat Fac Low Low Dat Pro Fac Was Fac Ext Cet Fac Upp Upp War Pro Fac Upp Upp Zhi Pro Res Qua Distress Signals 14 | . 1 4 5 . . . . . . . 1 . 1 . . . . . 1 . . . . . 1 Communications Jammed 23 | . . . . . . . . . . . 8 7 . 8 . . . . . . . . . . . Distress Signals 23 | . . . . . . . . . . . 8 7 . 8 . . . . . . . . . . . Times Spotted 448 | . 25 68 49 18 1 . . 5 . . 19 44 5 27 5 10 74 . 24 3 2 . 15 38 16 Peak Tracking Total 18 | . 5 10 4 3 1 . . 2 . . 4 9 5 4 3 5 18 . 4 2 2 . 7 9 11 Tactical Retreats 17 | . 1 1 . . . . . . . . . 3 . 3 . . 1 . 2 1 . . 1 3 1 Traps | -11 -10 -9 -8 -7 -7 -7 -7 -6 -6 -6 -6 -6 -6 -5 -5 -5 -5 -4 -4 -4 -4 -4 -3 -3 -3 ------- Run | Yrd Mat Mat Mat Fac Low Low Dat Pro Fac Was Fac Ext Cet Fac Upp Upp War Pro Fac Upp Upp Zhi Pro Res Qua Traps Triggered 8 | . . . . . . . . . 1 . . 3 . . . . 2 . 2 . . . . . . Indirectly . | . . . . . . . . . . . . . . . . . . . . . . . . . . Trap Hack Attempts . | . . . . . . . . . . . . . . . . . . . . . . . . . . Triggered . | . . . . . . . . . . . . . . . . . . . . . . . . . . Disarmed . | . . . . . . . . . . . . . . . . . . . . . . . . . . Reprogrammed . | . . . . . . . . . . . . . . . . . . . . . . . . . . Reused . | . . . . . . . . . . . . . . . . . . . . . . . . . . Traps Extracted . | . . . . . . . . . . . . . . . . . . . . . . . . . . Installed . | . . . . . . . . . . . . . . . . . . . . . . . . . . Triggered . | . . . . . . . . . . . . . . . . . . . . . . . . . . Machines | -11 -10 -9 -8 -7 -7 -7 -7 -6 -6 -6 -6 -6 -6 -5 -5 -5 -5 -4 -4 -4 -4 -4 -3 -3 -3 ---------- Run | Yrd Mat Mat Mat Fac Low Low Dat Pro Fac Was Fac Ext Cet Fac Upp Upp War Pro Fac Upp Upp Zhi Pro Res Qua Machines Disabled 40 | . . 1 2 4 1 . . . . . 2 7 . 8 . . . 1 10 . . . . 2 2 Max in Single Turn 5 | . . 1 1 1 1 . . . . . 1 1 . 2 . . . 1 5 . . . . 1 1 Garrison Access 1 | . . . . . . . . . . . 1 . . . . . . . . . . . . . . Energy Cycler 2 | . . . . . . . . . . . . 2 . . . . . . . . . . . . . Machines Repaired . | . . . . . . . . . . . . . . . . . . . . . . . . . . Machines Dismantled . | . . . . . . . . . . . . . . . . . . . . . . . . . . Machines Sabotaged . | . . . . . . . . . . . . . . . . . . . . . . . . . . Overloaded Fab Kills . | . . . . . . . . . . . . . . . . . . . . . . . . . . Hacking | -11 -10 -9 -8 -7 -7 -7 -7 -6 -6 -6 -6 -6 -6 -5 -5 -5 -5 -4 -4 -4 -4 -4 -3 -3 -3 --------- Run | Yrd Mat Mat Mat Fac Low Low Dat Pro Fac Was Fac Ext Cet Fac Upp Upp War Pro Fac Upp Upp Zhi Pro Res Qua Machines Accessed 55 | . 7 5 3 3 1 . 4 . . . 2 7 . 4 . 1 4 1 . 2 . 4 . 5 2 Terminals 35 | . 7 5 3 1 . . . . . . 1 7 . 3 . . . . . 1 . . . 5 2 Fabricators . | . . . . . . . . . . . . . . . . . . . . . . . . . . Repair Stations . | . . . . . . . . . . . . . . . . . . . . . . . . . . Recycling Units . | . . . . . . . . . . . . . . . . . . . . . . . . . . Scanalyzers . | . . . . . . . . . . . . . . . . . . . . . . . . . . Garrison Access 4 | . . . . 2 . . . . . . 1 . . 1 . . . . . . . . . . . Total Hacks 149 | . 23 12 7 4 1 . 26 . . . 7 14 . 7 . 1 14 1 . 2 . 17 . 10 3 Successful 98 | . 8 5 4 1 1 . 26 . . . 5 8 . 2 . 1 14 1 . 2 . 17 . 2 1 Failed 51 | . 15 7 3 3 . . . . . . 2 6 . 5 . . . . . . . . . 8 2 Catastrophic 10 | . 2 2 . 2 . . . . . . . 2 . . . . . . . . . . . 2 . Database Lockouts . | . . . . . . . . . . . . . . . . . . . . . . . . . . Manual 38 | . 10 9 3 1 . . . . . . 3 6 . 1 . . 1 . . . . . . 4 . Terminals 83 | . 23 12 7 2 . . . . . . 6 14 . 5 . . . . . 1 . . . 10 3 Fabricators . | . . . . . . . . . . . . . . . . . . . . . . . . . . Repair Stations . | . . . . . . . . . . . . . . . . . . . . . . . . . . Recycling Units . | . . . . . . . . . . . . . . . . . . . . . . . . . . Scanalyzers . | . . . . . . . . . . . . . . . . . . . . . . . . . . Garrison Access 5 | . . . . 2 . . . . . . 1 . . 2 . . . . . . . . . . . Terminal Hacks 86 | . 5 3 3 1 1 . 26 . . . 2 7 . 1 . 1 14 1 . 2 . 17 . 1 1 Record 27 | . . . . . . . 11 . . . . . . . . . 9 1 . 1 . 5 . . . Part Schematic 12 | . . . . . . . 8 . . . . . . . . . . . . . . 4 . . . Robot Schematic 4 | . . . . . . . 4 . . . . . . . . . . . . . . . . . . Robot Analysis 9 | . . 1 . . . . . . . . . 4 . . . . . . . . . 4 . . . Prototype ID Bank 15 | . 1 . 1 . . . 3 . . . 1 . . . . . 5 . . . . 4 . . . Open Door 3 | . . . . . 1 . . . . . . . . . . 1 . . . 1 . . . . . Branch Access Points 2 | . . 1 . . . . . . . . . . . . . . . . . . . . . . 1 Emergency Access Points 2 | . 1 . . . . . . . . . 1 . . . . . . . . . . . . . . Terminal Index 1 | . . 1 . . . . . . . . . . . . . . . . . . . . . . . Alert Level 1 | . . . . . . . . . . . . . . . . . . . . . . . . 1 . Unreport Threat 4 | . . . 1 . . . . . . . . 2 . 1 . . . . . . . . . . . Locate Traps 2 | . 1 . . 1 . . . . . . . . . . . . . . . . . . . . . Recall Reinforcements 1 | . . . . . . . . . . . . 1 . . . . . . . . . . . . . Registered Components 1 | . 1 . . . . . . . . . . . . . . . . . . . . . . . . Zone Layout 2 | . 1 . 1 . . . . . . . . . . . . . . . . . . . . . . Fabricator Hacks . | . . . . . . . . . . . . . . . . . . . . . . . . . . Repair Station Hacks . | . . . . . . . . . . . . . . . . . . . . . . . . . . Recycling Unit Hacks . | . . . . . . . . . . . . . . . . . . . . . . . . . . Scanalyzer . | . . . . . . . . . . . . . . . . . . . . . . . . . . Garrison Access Hacks 1 | . . . . . . . . . . . 1 . . . . . . . . . . . . . . Seal Access 1 | . . . . . . . . . . . 1 . . . . . . . . . . . . . . Unauthorized Hacks 11 | . 3 2 1 . . . . . . . 2 1 . 1 . . . . . . . . . 1 . Terminals 11 | . 3 2 1 . . . . . . . 2 1 . 1 . . . . . . . . . 1 . Track 3 | . 1 . 1 . . . . . . . 1 . . . . . . . . . . . . . . Botnet 8 | . 2 2 . . . . . . . . 1 1 . 1 . . . . . . . . . 1 . Fabricators . | . . . . . . . . . . . . . . . . . . . . . . . . . . Repair Stations . | . . . . . . . . . . . . . . . . . . . . . . . . . . Recycling Units . | . . . . . . . . . . . . . . . . . . . . . . . . . . Scanalyzers . | . . . . . . . . . . . . . . . . . . . . . . . . . . Garrison Access . | . . . . . . . . . . . . . . . . . . . . . . . . . . Data Cores Recovered 1 | . . . . . . . . . . . . 1 . . . . . . . . . . . . . Used 1 | . . . . . . . . . . . . 1 . . . . . . . . . . . . . Hacking Detections 36 | . 7 5 3 3 . . . . . . . 7 . 4 . . . . . 1 . . . 5 1 Full Trace Events 2 | . . 1 . . . . . . . . . 1 . . . . . . . . . . . . . Feedback Events 1 | . . . . . . . . . . . . 1 . . . . . . . . . . . . . Corruption 1 | . . . . . . . . . . . . 1 . . . . . . . . . . . . . Feedback Blocked . | . . . . . . . . . . . . . . . . . . . . . . . . . . Robot Schematics Acquired 4 | . . . . . . . 4 . . . . . . . . . . . . . . . . . . Robots Built . | . . . . . . . . . . . . . . . . . . . . . . . . . . Authchips . | . . . . . . . . . . . . . . . . . . . . . . . . . . Time . | . . . . . . . . . . . . . . . . . . . . . . . . . . Total Robot Build Rating . | . . . . . . . . . . . . . . . . . . . . . . . . . . Part Schematics Acquired 12 | . . . . . . . 8 . . . . . . . . . . . . . . 4 . . . Parts Built . | . . . . . . . . . . . . . . . . . . . . . . . . . . Authchips . | . . . . . . . . . . . . . . . . . . . . . . . . . . Time . | . . . . . . . . . . . . . . . . . . . . . . . . . . Total Part Build Rating . | . . . . . . . . . . . . . . . . . . . . . . . . . . Parts Repaired . | . . . . . . . . . . . . . . . . . . . . . . . . . . Time . | . . . . . . . . . . . . . . . . . . . . . . . . . . Parts Recycled . | . . . . . . . . . . . . . . . . . . . . . . . . . . Recycled Matter . | . . . . . . . . . . . . . . . . . . . . . . . . . . Retrieved Matter . | . . . . . . . . . . . . . . . . . . . . . . . . . . Retrieved Components . | . . . . . . . . . . . . . . . . . . . . . . . . . . Parts Scanalyzed . | . . . . . . . . . . . . . . . . . . . . . . . . . . Part Schematics Acquired . | . . . . . . . . . . . . . . . . . . . . . . . . . . Parts Damaged . | . . . . . . . . . . . . . . . . . . . . . . . . . . Bothacking | -11 -10 -9 -8 -7 -7 -7 -7 -6 -6 -6 -6 -6 -6 -5 -5 -5 -5 -4 -4 -4 -4 -4 -3 -3 -3 ------------ Run | Yrd Mat Mat Mat Fac Low Low Dat Pro Fac Was Fac Ext Cet Fac Upp Upp War Pro Fac Upp Upp Zhi Pro Res Qua Used RIF Installer . | . . . . . . . . . . . . . . . . . . . . . . . . . . Robots Hacked . | . . . . . . . . . . . . . . . . . . . . . . . . . . Non-combat . | . . . . . . . . . . . . . . . . . . . . . . . . . . Combat . | . . . . . . . . . . . . . . . . . . . . . . . . . . Robot Hacks Applied . | . . . . . . . . . . . . . . . . . . . . . . . . . . Relay Couplers Released 3 | . . . . . . . . . . . . . . 3 . . . . . . . . . . . Programmers 3 | . . . . . . . . . . . . . . 3 . . . . . . . . . . . Fabnet Peak Effective % . | . . . . . . . . . . . . . . . . . . . . . . . . . . Robots Rewired 19 | . . . . . . . . . . . . 14 . . . . 5 . . . . . . . . Allies Hacked 1 | . . . . . . . . . . . . . . 1 . . . . . . . . . . . Hacks Repelled . | . . . . . . . . . . . . . . . . . . . . . . . . . . Allies | -11 -10 -9 -8 -7 -7 -7 -7 -6 -6 -6 -6 -6 -6 -5 -5 -5 -5 -4 -4 -4 -4 -4 -3 -3 -3 -------- Run | Yrd Mat Mat Mat Fac Low Low Dat Pro Fac Was Fac Ext Cet Fac Upp Upp War Pro Fac Upp Upp Zhi Pro Res Qua Total Allies 28 | . . . . . . . . . . . . 23 . . . . 5 . . . . . . . . Largest Group 13 | . . . . . . . . . . . . 13 8 3 . . 5 . . . . . . . . Highest-Rated Group 522 | . . . . . . . . . . . . 522 247 79 . . 236 . . . . . . . . Highest-Rated Ally 159 | . . . . . . . . . . . . 159 39 39 . . 64 . . . . . . . . Total Orders 1 | . . . . . . . . . . . . . . . . . . . . . . . . . 1 ROAM 1 | . . . . . . . . . . . . . . . . . . . . . . . . . 1 Ally Attacks 317 | . . . . . . . . . . . . 219 21 17 . . 60 . . . . . . . . Total Damage 8038 | . . . . . . . . . . . . 5036 387 420 . . 2195 . . . . . . . . Kills 50 | . . . . . . . . . . . . 32 4 3 . . 11 . . . . . . . . Allies Corrupted . | . . . . . . . . . . . . . . . . . . . . . . . . . . Allies Melted 1 | . . . . . . . . . . . . . . . . . 1 . . . . . . . . Intel | -11 -10 -9 -8 -7 -7 -7 -7 -6 -6 -6 -6 -6 -6 -5 -5 -5 -5 -4 -4 -4 -4 -4 -3 -3 -3 ------- Run | Yrd Mat Mat Mat Fac Low Low Dat Pro Fac Was Fac Ext Cet Fac Upp Upp War Pro Fac Upp Upp Zhi Pro Res Qua Active Infowar (turns) 20848 | . 196 138 778 2789 922 1043 177 768 100 218 1277 592 . 1971 999 1121 401 1914 1018 743 840 293 1902 648 . Optics 9 | . . . . . . . . . . . . . . . . . 9 . . . . . . . . Sensors 15132 | . . . . . 914 1043 176 767 100 218 1062 376 . 1419 996 1118 392 1914 437 730 801 289 1734 646 . IFF 3 | . . . . . . . . . . . . 3 . . . . . . . . . . . . . Terrain 16606 | . 191 79 776 1560 883 1042 177 426 97 3 926 318 . 616 996 1053 362 1900 1018 743 840 293 1902 405 . Structural 7 | . . . 7 . . . . . . . . . . . . . . . . . . . . . . Seismic 177 | . 5 59 113 . . . . . . . . . . . . . . . . . . . . . . Decoding 249 | . . . . . . . . . . . . . . . . . . . 249 . . . . . . Cloaking 1 | . . . . . . . . . . . . . . . . . 1 . . . . . . . . Jamming 4888 | . . . . 2096 3 . . . 46 . 460 315 . 1968 . . . . . . . . . . . Robot Analysis Total 9 | . . 1 . . . . . . . . . 4 . . . . . . . . . 4 . . . Derelict Logs Recovered 10 | . . . . . 1 1 . 2 . . . . . . 1 2 . 1 . . 2 . . . . Drone Launches 3 | . . . . . . . . . . . . . . . . . . . . . . . . . 3 Drone Recoveries 1 | . . . . . . . . . . . . . . . . . . . . . . . . . 1 Decoded 0b10 Intel 7 | . . . . . . . . . . . . . . . . . . . 7 . . . . . . Items 7 | . . . . . . . . . . . . . . . . . . . 7 . . . . . . Exploration | -11 -10 -9 -8 -7 -7 -7 -7 -6 -6 -6 -6 -6 -6 -5 -5 -5 -5 -4 -4 -4 -4 -4 -3 -3 -3 ------------- Run | Yrd Mat Mat Mat Fac Low Low Dat Pro Fac Was Fac Ext Cet Fac Upp Upp War Pro Fac Upp Upp Zhi Pro Res Qua Turns Passed 32146 | 150 1474 2820 2374 2983 1005 1046 180 873 100 218 1421 1980 285 2742 1137 1509 1928 1914 1018 743 840 293 1902 1033 178 Spaces Moved 12957 | 66 760 969 804 1076 415 457 78 357 62 140 715 742 106 994 449 598 791 684 335 285 341 168 835 457 273 Core 372 | 5 . . . . . . . . . . . . . . . . . . . . . . . 94 273 Treads 12583 | 60 760 969 804 1076 415 457 78 357 62 140 715 742 106 994 449 598 791 684 335 285 341 168 835 362 . Legs . | . . . . . . . . . . . . . . . . . . . . . . . . . . Wheels 1 | 1 . . . . . . . . . . . . . . . . . . . . . . . . . Hover . | . . . . . . . . . . . . . . . . . . . . . . . . . . Flight 1 | . . . . . . . . . . . . . . . . . . . . . . . . 1 . Fastest Speed 40 | 50 160 160 240 225 225 225 225 225 145 145 145 145 237 160 240 160 160 248 241 241 161 161 161 40 50 Average Speed 208 | 151 160 232 240 238 225 225 225 225 145 146 156 207 237 229 240 218 216 248 247 241 238 161 161 144 56 Slowest Speed 320 | 160 160 240 240 240 225 225 225 225 145 225 225 237 237 240 240 240 320 248 248 241 241 165 161 243 250 Overloaded Moves . | . . . . . . . . . . . . . . . . . . . . . . . . . . Propulsion Burnouts . | . . . . . . . . . . . . . . . . . . . . . . . . . . Robots Hopped . | . . . . . . . . . . . . . . . . . . . . . . . . . . Potential Cave-ins 4 | . . . . . . . . . . . . . . . . . 1 . 2 . . . . . 1 Cave-ins Triggered . | . . . . . . . . . . . . . . . . . . . . . . . . . . Teleports 2 | . . . . . . . . . . . . . . . . . . . . . . . . 1 1 Exploration Rate (%) 49 | 5 97 75 50 27 48 64 68 44 2 73 20 78 33 24 68 59 73 72 13 43 56 60 78 17 48 Regions Visited 25 Branch Regions 15 Pre-discovered Areas 6 | . . . . . . . 1 . . . . . . . . . . 1 . . 1 3 . . . Known Exits Taken 21 | . 1 . 1 1 1 1 1 1 . . 1 1 1 1 1 1 1 1 1 1 1 1 1 1 . Unknown Exits Taken 2 | 1 . 1 . . . . . . . . . . . . . . . . . . . . . . . Scrap Searched 15 | . . . . . . 2 . . . . . . . . 4 1 . 3 . 1 . . 4 . . Spaces Dug 97 | . 1 1 3 21 2 2 . . . . 10 1 . 14 1 1 . 6 5 10 4 . 4 10 1 Terrain Destroyed 711 | . 1 1 52 25 2 2 . 28 . . 55 19 . 116 102 56 6 9 103 12 6 . 65 50 1 Melee 34 | . 1 1 3 18 . 2 . . . . 7 . . 1 . 1 . . . . . . . . . Projectile 211 | . . . . 7 2 . . 7 . . 8 19 . 51 4 4 6 9 24 12 6 . 19 32 1 AOE 466 | . . . 49 . . . . 21 . . 40 . . 64 98 51 . . 79 . . . 46 18 . Terrain Rammed . | . . . . . . . . . . . . . . . . . . . . . . . . . . Walls Destroyed . | . . . . . . . . . . . . . . . . . . . . . . . . . . Machines Disabled . | . . . . . . . . . . . . . . . . . . . . . . . . . . Actions | -11 -10 -9 -8 -7 -7 -7 -7 -6 -6 -6 -6 -6 -6 -5 -5 -5 -5 -4 -4 -4 -4 -4 -3 -3 -3 --------- Run | Yrd Mat Mat Mat Fac Low Low Dat Pro Fac Was Fac Ext Cet Fac Upp Upp War Pro Fac Upp Upp Zhi Pro Res Qua Total 16655 | 91 924 1338 1075 1381 463 471 82 392 73 149 953 1090 133 1296 485 744 952 894 451 332 354 195 1341 701 295 Wait 1819 | . 57 119 84 135 10 8 . 12 7 . 169 89 17 126 4 84 24 187 49 37 1 . 465 133 2 Move 12933 | 65 759 968 803 1075 414 456 77 356 62 139 714 741 105 993 448 597 790 683 334 284 340 167 834 456 273 Hop . | . . . . . . . . . . . . . . . . . . . . . . . . . . Pick Up 212 | 7 16 43 20 22 4 1 . . 1 2 4 11 1 28 1 5 20 5 6 . . 6 2 5 2 Fast Attach 66 | 6 4 3 3 4 . . 1 . . . . 1 1 3 6 8 8 2 2 . 2 4 1 4 3 Attach 99 | . 2 8 14 5 . . . . 2 . 3 7 . 13 1 3 10 1 4 . 1 4 . 16 5 Detach 35 | . 2 1 3 2 . . . . . . . 1 . 2 . . 6 . 1 . . 6 . 7 4 Swap 251 | 1 9 21 21 33 15 3 3 7 1 4 24 19 1 19 11 16 14 2 4 1 2 1 8 11 . Drop 211 | . 14 43 23 29 4 1 1 . . 2 2 13 3 21 2 2 23 5 7 . 1 7 2 4 2 Fire 787 | 12 60 130 101 55 15 . . 17 . . 27 46 5 90 12 23 29 9 42 10 7 . 29 65 3 Melee 49 | . 1 2 3 21 1 2 . . . 2 10 . . 1 . 6 . . . . . . . . . Ram 1 | . . . . . . . . . . . . . . . . . . . . . . . . . 1 Kick . | . . . . . . . . . . . . . . . . . . . . . . . . . . Crush . | . . . . . . . . . . . . . . . . . . . . . . . . . . Escape Stasis 4 | . . . . . . . . . . . . 2 . . . . . . 2 . . . . . . Rewire 188 | . . . . . . . . . . . . 160 . . . . 28 . . . . . . . . Trap . | . . . . . . . . . . . . . . . . . . . . . . . . . . Miscellaneous . | . . . . . . . . . . . . . . . . . . . . . . . . . . Route ------- -11/Scrapyard -10/Materials (discovered 4 exits: *Mat x3 / [*Min]) -9/Materials (discovered 5 exits: *Mat x2 / *Min / *Sto x2) -8/Materials -7/Factory -7/Lower Caves -7/Lower Caves -7/Data Miner -6/Proximity Caves -6/Factory -6/Waste -6/Factory -6/Extension (discovered 2 exits: *Fac / *Cet) -6/Cetus -5/Factory -5/Upper Caves -5/Upper Caves (discovered 2 exits: *Fac / *War) -5/Warlord -4/Proximity Caves -4/Factory (discovered 2 exits: *Upp / Arm) -4/Upper Caves -4/Upper Caves (discovered 2 exits: Res / *Zhi) -4/Zhirov -3/Proximity Caves -3/Research -3/Quarantine History --------- Turn | Location | Event 19 | -11/Scrapyard | Discovered new exit (range 16) 151 | -11/Scrapyard | Entered Materials 314 | -10/Materials | Build established: Mutant 444 | -10/Materials | Discovered new exit (range 5) 653 | -10/Materials | Discovered new exit (range 16) 986 | -10/Materials | Discovered new exit (range 5) 1306 | -10/Materials | Identified exit to Materials 1514 | -10/Materials | Discovered exit to Materials (range 15) 1625 | -10/Materials | Entered another Materials area 1625 | -9/Materials | Evolved 2 slots: Propulsion x1, Utility x1 1791 | -9/Materials | Discovered new exit (range 6) 2386 | -9/Materials | Identified exit to Mines 2386 | -9/Materials | Identified exit to Storage 2787 | -9/Materials | Destroyed 10 combat bots 2794 | -9/Materials | Lost 4 parts (1p1n1u1w) 3051 | -9/Materials | Build established: Scavenger-Mutant 3071 | -9/Materials | Discovered new exit (range 4) 3478 | -9/Materials | Discovered new exit (range 10) 4347 | -9/Materials | Core integrity fell below 50% 4445 | -9/Materials | Entered another Materials area 4445 | -8/Materials | Evolved 2 slots: Utility x2 4827 | -8/Materials | Lost 3 parts (1n2w) 5287 | -8/Materials | Build established: Mutant 5287 | -8/Materials | Discovered new exit (range 16) 5475 | -8/Materials | Identified exit to Factory 6099 | -8/Materials | Garrison activated, responded to threat 6819 | -8/Materials | Entered Factory 6819 | -7/Factory | Evolved 2 slots: Propulsion x1, Utility x1 6937 | -7/Factory | Build established: Scavenger-Mutant 9694 | -7/Factory | Discovered new exit (range 10) 9716 | -7/Factory | Identified exit to Lower Caves 9755 | -7/Factory | Build established: Mutant 9802 | -7/Factory | Entered Lower Caves 9898 | -7/Lower Caves | Attacked by a delusional Derelict stockpiling parts 10241 | -7/Lower Caves | Build established: Skirmisher 10282 | -7/Lower Caves | Encountered a Warlord checkpoint 10415 | -7/Lower Caves | Discovered new exit (range 8) 10449 | -7/Lower Caves | Learned 12 Factory zone layouts 10497 | -7/Lower Caves | Found DRS Beacon 10721 | -7/Lower Caves | Identified exit to Lower Caves 10807 | -7/Lower Caves | Entered another Lower Caves area 11116 | -7/Lower Caves | Learned 8 Factory zone layouts 11459 | -7/Lower Caves | Discovered new exit (range 14) 11486 | -7/Lower Caves | Identified exit to Data Miner 11667 | -7/Lower Caves | Build established: Assassin 11853 | -7/Lower Caves | Entered Data Miner 11853 | -7/Data Miner | Discovered new exit (range 6) 11867 | -7/Data Miner | Identified exit to Proximity Caves 11897 | -7/Data Miner | Met Data Miner 11937 | -7/Data Miner | Learned location of Section 7 (-3) 11937 | -7/Data Miner | Acquired the access code to Warlord's prototype stash 11975 | -7/Data Miner | Received God Mode back door access code from Data Miner 12033 | -7/Data Miner | Entered Proximity Caves 12137 | -6/Proximity Caves | Learned Factory machine intel 12349 | -6/Proximity Caves | Build established: Skirmisher 12383 | -6/Proximity Caves | Learned Factory terminal intel 12757 | -6/Proximity Caves | Build established: Mutant 12821 | -6/Proximity Caves | Discovered new exit (range 6) 12904 | -6/Proximity Caves | Identified exit to Factory 12906 | -6/Proximity Caves | Entered Factory 12906 | -6/Factory | Evolved 2 slots: Propulsion x1, Utility x1 12907 | -6/Factory | Identified exit to Factory 12908 | -6/Factory | Loaded intel: 284 machine locations 12909 | -6/Factory | Loaded intel: 27 terminal locations 13006 | -6/Factory | Sucked down chute 13006 | -6/Factory | Entered Waste 13006 | -6/Waste | The area was eerily silent 13162 | -6/Waste | Discovered new exit (range 16) 13223 | -6/Waste | Identified exit to Factory 13224 | -6/Waste | Entered Factory 13544 | -6/Factory | Build established: Assassin 14592 | -6/Factory | Discovered new exit (range 15) 14643 | -6/Factory | Identified exit to Extension 14645 | -6/Factory | Entered Extension 14750 | -6/Extension | Rescued a captive Derelict 14783 | -6/Extension | Rescued a captive Derelict 14785 | -6/Extension | Rescued a captive Derelict 15227 | -6/Extension | Rescued a captive Derelict 15228 | -6/Extension | Rescued a captive Derelict 15376 | -6/Extension | Rescued A7 15493 | -6/Extension | Spotted B-75 Beast 15506 | -6/Extension | Spotted B-75 Beast 15566 | -6/Extension | Destroyed B-75 Beast 15570 | -6/Extension | Lost 3 allies 15576 | -6/Extension | Lost 4 parts (2n2u) 15627 | -6/Extension | Allies destroyed B-75 Beast 15748 | -6/Extension | Rescued a captive Derelict 15776 | -6/Extension | Rescued a captive Derelict 15779 | -6/Extension | Rescued a captive Derelict 15807 | -6/Extension | Build established: Scavenger-Mutant 15828 | -6/Extension | Energy Cycler disabled 15828 | -6/Extension | Rescued a captive Derelict 15829 | -6/Extension | Rescued a captive Derelict 15831 | -6/Extension | Rescued a captive Derelict 16045 | -6/Extension | First assault squad dispatched 16063 | -6/Extension | Incoming assault squad redirected 16075 | -6/Extension | Incoming assault squad redirected 16206 | -6/Extension | Incoming investigation squad redirected 16484 | -6/Extension | Destroyed 8 combat bots 16553 | -6/Extension | Lost 3 allies 16554 | -6/Extension | Build established: Commander-Mutant 16589 | -6/Extension | Discovered exit to Factory (range 10) 16591 | -6/Extension | Discovered new exit (range 6) 16605 | -6/Extension | Identified exit to Cetus 16625 | -6/Extension | Entered Cetus 16625 | -6/Cetus | Accompanied by 8 allies 16663 | -6/Cetus | Spotted Cetus Guard 16663 | -6/Cetus | Spotted Cetus Guard 16668 | -6/Cetus | Spotted Cetus Guard 16672 | -6/Cetus | Allies destroyed Cetus Guard 16673 | -6/Cetus | Spotted Cetus Guard 16674 | -6/Cetus | Allies destroyed Cetus Guard 16683 | -6/Cetus | Destroyed Cetus Guard 16684 | -6/Cetus | Allies destroyed Cetus Guard 16710 | -6/Cetus | Lost 5 allies 16863 | -6/Cetus | Discovered exit to Factory (range 15) 16910 | -6/Cetus | Entered Factory 16910 | -5/Factory | Accompanied by 3 allies 16910 | -5/Factory | Evolved 2 slots: Power x1, Utility x1 17215 | -5/Factory | Build established: Scavenger-Skirmisher 17544 | -5/Factory | Lost 3 allies 17835 | -5/Factory | Build established: Scavenger-Mutant 18382 | -5/Factory | System corruption reached 10% 19492 | -5/Factory | Lost 3 parts (1p2n) 19588 | -5/Factory | Discovered new exit (range 4) 19595 | -5/Factory | Identified exit to Upper Caves 19652 | -5/Factory | Entered Upper Caves 19985 | -5/Upper Caves | Build established: Skirmisher 20578 | -5/Upper Caves | Learned 4 Factory zone layouts 20757 | -5/Upper Caves | Discovered new exit (range 12) 20784 | -5/Upper Caves | Identified exit to Upper Caves 20789 | -5/Upper Caves | Entered another Upper Caves area 21011 | -5/Upper Caves | Learned 4 Factory zone layouts 21014 | -5/Upper Caves | Discovered new exit (range 9) 21033 | -5/Upper Caves | Identified exit to Factory 21035 | -5/Upper Caves | Spotted B-75 Beast 21100 | -5/Upper Caves | Destroyed B-75 Beast 21125 | -5/Upper Caves | Lost 4 parts (1p1n2u) 21568 | -5/Upper Caves | Lost 3 parts (1p2w) 21908 | -5/Upper Caves | Build established: Scavenger-Assassin 22273 | -5/Upper Caves | Discovered new exit (range 14) 22297 | -5/Upper Caves | Identified exit to Warlord 22298 | -5/Upper Caves | Entered Warlord 22357 | -5/Warlord | System corruption cleaned by Quarantine Array 22557 | -5/Warlord | System corruption cleaned by Quarantine Array 22684 | -5/Warlord | Opened Warlord's prototype stash 22693 | -5/Warlord | Found Prototype Reactor 22697 | -5/Warlord | Identified Vortex Chain Reactor 22706 | -5/Warlord | Found Prototype Device 22714 | -5/Warlord | Identified Exp. Cloaking Device 22734 | -5/Warlord | Found Prototype Processor 22735 | -5/Warlord | Identified Spectral Analyzer 22739 | -5/Warlord | Found Prototype Device 22755 | -5/Warlord | Identified Thermal Barrier 22994 | -5/Warlord | Build established: Scavenger-Mutant 23303 | -5/Warlord | Warlord's base attacked by MAIN.C 23379 | -5/Warlord | Met Warlord 23600 | -5/Warlord | Lost 3 allies 23653 | -5/Warlord | Warlord forces counterattacked 23656 | -5/Warlord | Spotted Executioner 23658 | -5/Warlord | Allies destroyed Executioner 23716 | -5/Warlord | Lost 6 allies 23745 | -5/Warlord | Spotted Executioner 23781 | -5/Warlord | Lost 7 allies 23803 | -5/Warlord | Spotted B-86 Titan 23814 | -5/Warlord | Spotted Striker 23814 | -5/Warlord | Spotted Executioner 23823 | -5/Warlord | P-80 Master assimilated allied EF-8GE(g) 23825 | -5/Warlord | Spotted Striker 23833 | -5/Warlord | P-70 Sage assimilated allied IB-07T(M) 23837 | -5/Warlord | P-70 Sage assimilated allied LA-2OE(g) 23844 | -5/Warlord | Destroyed Executioner 23875 | -5/Warlord | Lost 17 allies 23875 | -5/Warlord | P-70 Sage assimilated allied Archangel 6a 23941 | -5/Warlord | Spotted B-86 Titan 23950 | -5/Warlord | Lost 5 parts (2n1u2w) 23970 | -5/Warlord | Destroyed B-86 Titan 23978 | -5/Warlord | Warlord base infiltrated, sounded retreat 23999 | -5/Warlord | Core integrity fell below 50% 24024 | -5/Warlord | Lost 4 allies 24034 | -5/Warlord | System corruption reached 30% 24038 | -5/Warlord | Found Corrupted Prototype Ballistic Cannon 24126 | -5/Warlord | Spotted Executioner 24131 | -5/Warlord | Spotted Executioner 24140 | -5/Warlord | Spotted Executioner 24174 | -5/Warlord | Lost 7 allies 24207 | -5/Warlord | Discovered new exit (range 9) 24224 | -5/Warlord | Identified exit to Proximity Caves 24226 | -5/Warlord | Entered Proximity Caves 24248 | -4/Proximity Caves | Lost 5 allies 24508 | -4/Proximity Caves | Build established: Scavenger-Skirmisher 25178 | -4/Proximity Caves | Learned location of Quarantine (-3) 25837 | -4/Proximity Caves | Found Alien Artifact 25837 | -4/Proximity Caves | Identified Dimensional Node Initializer 25837 | -4/Proximity Caves | Initialized slip node 26025 | -4/Proximity Caves | Discovered exit to Factory (range 14) 26140 | -4/Proximity Caves | Entered Factory 26140 | -4/Factory | Evolved 2 slots: Utility x2 26141 | -4/Factory | Identified exit to Armory 26596 | -4/Factory | Allied Derelicts emerged from ambush trap array 26614 | -4/Factory | Spotted B-86 Titan 26629 | -4/Factory | Lost 3 allies 26639 | -4/Factory | Destroyed B-86 Titan 26900 | -4/Factory | Discovered new exit (range 14) 26916 | -4/Factory | Build established: Scavenger-Mutant 27024 | -4/Factory | Identified exit to Upper Caves 27140 | -4/Factory | First assault squad dispatched 27158 | -4/Factory | Entered Upper Caves 27159 | -4/Upper Caves | Encountered a Warlord checkpoint 27477 | -4/Upper Caves | Build established: Scavenger-Skirmisher 27865 | -4/Upper Caves | Discovered new exit (range 17) 27899 | -4/Upper Caves | Identified exit to Upper Caves 27901 | -4/Upper Caves | Entered another Upper Caves area 27995 | -4/Upper Caves | Learned location of Armory (-4) 28164 | -4/Upper Caves | Discovered new exit (range 19) 28237 | -4/Upper Caves | Encountered a Warlord checkpoint 28616 | -4/Upper Caves | Discovered new exit (range 19) 28696 | -4/Upper Caves | Identified exit to Zhirov 28724 | -4/Upper Caves | Found Alien Artifact 28724 | -4/Upper Caves | Identified Core Expander 28724 | -4/Upper Caves | Installed Core Expander, added new Propulsion slot 28741 | -4/Upper Caves | Entered Zhirov 28741 | -4/Zhirov | Discovered new exit (range 3) 28746 | -4/Zhirov | Identified exit to Proximity Caves 28785 | -4/Zhirov | Met Zhirov 28822 | -4/Zhirov | Learned location of Testing (-2) 28822 | -4/Zhirov | Learned location of Command (-1) 28831 | -4/Zhirov | Zhirov requested help retrieving the SGEMP Prototype 28862 | -4/Zhirov | Found Alien Artifact 28862 | -4/Zhirov | Identified Integrated Dissipator 28862 | -4/Zhirov | Installed Integrated Dissipator, increased core heat dissipation (+20) 28881 | -4/Zhirov | Found Alien Artifact 29034 | -4/Zhirov | Entered Proximity Caves 29036 | -3/Proximity Caves | Spotter reported a threat 29037 | -3/Proximity Caves | Spotter reported a threat 29051 | -3/Proximity Caves | Build established: Scavenger-Mutant 29387 | -3/Proximity Caves | Build established: Scavenger-Skirmisher 29790 | -3/Proximity Caves | Spotter reported a threat 30303 | -3/Proximity Caves | Spotter reported a threat 30381 | -3/Proximity Caves | Spotter reported a threat 30472 | -3/Proximity Caves | Spotter reported a threat 30532 | -3/Proximity Caves | Spotter reported a threat 30857 | -3/Proximity Caves | Discovered new exit (range 15) 30909 | -3/Proximity Caves | Received a Behemoth hack from an annoying Tinkerer 30915 | -3/Proximity Caves | Destroyed 7 combat bots 30934 | -3/Proximity Caves | Identified exit to Research 30936 | -3/Proximity Caves | Entered Research 30936 | -3/Research | Evolved 2 slots: Utility x1, Weapon x1 30937 | -3/Research | Identified exit to Quarantine 31186 | -3/Research | Search patrols dispatched 31377 | -3/Research | Lost 4 parts (1p1n2u) 31459 | -3/Research | Identified Transdimensional Reconstructor 31459 | -3/Research | Warped through subspace 31465 | -3/Research | Spotted B-86 Titan 31498 | -3/Research | Destroyed B-86 Titan 31678 | -3/Research | Destroyed 8 combat bots 31879 | -3/Research | Spotted B-86 Titan 31936 | -3/Research | First assault squad dispatched 31941 | -3/Research | Lost 13 parts (3p5n2u3w) 31953 | -3/Research | Core integrity fell below 50% 31965 | -3/Research | Core integrity fell below 20% 31969 | -3/Research | Entered Quarantine 31988 | -3/Quarantine | Lost 3 parts (1n2u) 31988 | -3/Quarantine | Found Alien Artifact 31988 | -3/Quarantine | Identified Terrabomb 31988 | -3/Quarantine | Used Terrabomb 32023 | -3/Quarantine | Found Alien Artifact 32023 | -3/Quarantine | Identified Phase Redirector 32125 | -3/Quarantine | Found Alien Artifact 32125 | -3/Quarantine | Identified Hpw. Transdimensional Reconstructor 32125 | -3/Quarantine | Warped through subspace 32147 | -3/Quarantine | Destroyed by Y-72 Warden with Quantum Rifle Last Messages --------------- 32089_ ALERT: Potential suspicious activity detected, Programmers report to Quarantine Zone 8O. 32093_ K-01 Serf cleans the Biostasis Chamber. 32094_ Organic Neutralizer disabled. 32100_ K-01 Serf cleans the Biostasis Chamber. 32110_ Mini Drone released from Mni. Drone Bay. 32115_ Mini Drone destroyed. 32115_ K-01 Serf cleans the Biostasis Chamber. 32115_ Mini Drone retrieved by Mni. Drone Bay (repair cost: 2). 32116_ K-01 Serf collects debris. 32118_ Mni. Drone Bay destroyed. 32119_ >> Lost connection to Mini Drone. 32120_ Slammed into G-67 Veteran. 32120_ Adv. Signal Interpreter broken. 32120_ Destabilizing: Short circuit. 32125_ Acquired Alien Artifact. 32125_ Identified Hpw. Transdimensional Reconstructor. 32125_ Warped through subspace. 32134_ Acquired Com. HERF Cannon. 32147_ Slug penetrates Wall. Map ----- +----------------------------------------------------+ | | | | | | | | | | | ?????????????????????????????????????????????????? | | ?????????????????????????????????????????????????? | | ?????????????????????????????????????????????????? | | ?????????????????????????????????????????????????? | | ?????????????????????????????????????????????????? | | ?????????????????????????????????????????????????? | | ?????????????????????????????????????????????????? | | ?????????????????????????????????????????????????? | | ?????????????????????????????????????????????????? | | ?????????????????????????????????????????????????? | | ?????????????????????????????????????????????????? | | ?????????????????????????????????????????????????? | | ?????????????????????????????????????????????????? | | ?????????????????????????????????????????????????? | | ?????????????????????????????????????????????????? | | ???????????????????????###+###???????????????????? | | ???????????????????????# ##+#+####???????????? | | ?????????????????????### "" Y#???????????? | | ?????????????????????? T" ! Y#???????????? | | ???????????????????????# Y ????????????? | | ???????????????????????#=@ !#???????????????????? | | ???????????????????????### ###???????????????????? | | ????????????????#####?#### #?????????????????????? | | ????????????????# ? # #?????????????????????? | | ????????????????# # #?????????????????????? | | ????????????????# """ # #?????????????????????? | | ????????????????# """ # #?????????????????????? | | ????????????????# """ # #?????????????????????? | | ????????????????# """ # #?????????????????????? | | ????????????????# """ # #?????????????????????? | | ????????????????# """ # #?????????????????????? | | ????????????????# """ # #?????????????????????? | | ????????????????# # #########+###?????????? | | ????????????????# # +???????? | | ????????????????# + +???????? | | ????????????????# # +???????? | | ????????????????# + ????????? | | ????????????????# # ###########????????? | | ????????????????# [ # #??????????????????? | | ????????????????########## #??????????????????? | | ???????????? #??????????????????? | | ??????????????????# #??????????????????? | | ??????????????????# #??????????????????? | | ??????????????????# #??????????????????? | | ????? ??????????##+##########??????????????????? | +----------------------------------------------------+ Best States ------------- Heat Dissipation 101 Coolant Potential 100 Energy Generation 55 Energy Capacity 1300 Matter Stores 300 Matter Capacity 300 Sight Range 24 Robot Scan Range 16 Terrain Scan Range 20 Terrain Scan Density 210 Jamming Range 12 Base Temperature (-) 150 Armor Coverage 450 Weapon Shielding 33 Phase Shifting 10 Evasion (%) 60 Targeting Accuracy 16 Target Analysis 6 Armor Integrity Analysis 40 Recoil Reduction 6 Offensive Hacking 26 Defensive Hacking 14 Item Schematics ----------------- Combat Drone Bay | -7/Data Miner | Free Lgt. Regenerative Plating | -7/Data Miner | Free Cld. Aerolev Unit | -7/Data Miner | Free Exp. Power Shielding | -7/Data Miner | Free Prc. Rocket Launcher | -7/Data Miner | Free Antigrav System | -7/Data Miner | Free Lrn. Tractor Beam | -7/Data Miner | Free Imp. Arc Projector | -7/Data Miner | Free Assault Drone Bay | -4/Zhirov | Free Exp. Heat Sink | -4/Zhirov | Free Exp. Optical Array | -4/Zhirov | Free Imp. Arc Thrower | -4/Zhirov | Free Robot Schematics ------------------ A-15 Conveyor | -7/Data Miner | Free M-22 Extractor | -7/Data Miner | Free L-41 Fighter | -7/Data Miner | Free C-17 Slicer | -7/Data Miner | Free Fabricated ------------ Nothing Repaired ---------- Nothing Alien Tech Used ----------------- Dimensional Node Initializer Core Expander Integrated Dissipator Transdimensional Reconstructor Terrabomb Phase Redirector High-powered Transdimensional Reconstructor Achievements -------------- None Challenges ------------ None Game ------ Seed SwarmGravmagBroadsword Manual? 0 Play Time 04:03:36 Cumulative 383.4 hours Start 2025.05.24 @ 15:11:59 End 2025.05.24 @ 22:32:10 Sessions 7 Manual Loads 0 Difficulty Rogue Special Mode None Game No. 448 Rogue 448 Adventurer 0 Explorer 0 Win Type - Total 37 Types 27/0/7/3/0/0/0/0/0/0 Lore% 71 Gallery% 69 Achievement% 61 Wizard Run 0 Options --------- Layout 0 ASCII 0 Keyboard 1 Movement Numpad Keybinds 0 Fullscreen 1 Font 24/Smallcaps Map View 76x50 Zoom Use 0% Tactical HUD 1 Map Filters NONE Filters NONE Steam 1 RUN: 04b2a9a5-7c65-45b5-ab04-f4c822e0c430